Cogmind - Beta 12 @@@ ROGUE MODE // 2023.12.23 @ 13:14:42 Player: hanzu Result: Destroyed self via exploding Z-Power Performance ------------- Evolutions (4) 2000 Regions Visited (17) 3400 Robots Destroyed (202) 1010 Value Destroyed (8697) 8697 Prototype IDs (50) 1000 Alien Tech Used (0) 0 Bonus (4629) 4629 TOTAL SCORE: 20736 Bonus ------- High Alert Combat Kills 743 Follower Combat Kills 1114 Entered Garrisons 800 Used RIF Installer 2000 Aligned with FarCom 300 Friendly Fire -328 Cogmind --------- Core Integrity 0/850 Matter 122/300 Energy 8/100 System Corruption 7% Temperature Cool (0) Movement Core (200) Ox3 Location -6/Deep Caves Parts ------- > --- POWER (1) -------- (None) > --- PROPULSION (4) --- (None) > --- UTILITY (7) ------ Enhanced Optical Array > --- WEAPON (3) ------- Heavy Phase Cannon > --- INVENTORY (5) ---- Light Angular Momentum Engine Heavy Flak Cannon Heavy Flak Cannon Peak State ------------ > --- POWER ------------ Light Fission Core > --- PROPULSION ------- Improved Heavy Treads Improved Heavy Treads > --- UTILITY ---------- Advanced Heat Sink Improved Cooling System Large Storage Unit Enhanced Optical Array Makeshift Terrain Scanner Recoil Nullifier Trap Reconfigurator > --- WEAPON ----------- Improved Heavy Machine Gun Railgun Magnetic Acceleration Cannon > --- INVENTORY -------- Light Angular Momentum Engine Light Angular Momentum Engine Spiked Medium Treads Large Matter Pod Focal Shield Authchip [R/NC] Makeshift Laser Plasma Rifle Plasma Rifle Force Rifle Heavy Phase Cannon Heavy Flak Cannon Heavy Flak Cannon Improved Proton Missile Launcher Remote Datajack [Rating: 95] Favorites ----------- Power Light Fission Core Engine Deuterium Engine Power Core Light Fission Core Propulsion Light Treads Treads Light Treads Leg Aluminum Leg Wheel Armored Huge Wheel Utility Hacking Suite Device Advanced Heat Sink Storage Large Storage Unit Processor Targeting Computer Hackware Hacking Suite Protection Hardened Medium Armor Plating Weapon Gauss Cannon Energy Gun Force Rifle Energy Cannon Heavy Plasma Cannon Ballistic Gun Railgun Ballistic Cannon Gauss Cannon Launcher Grenade Launcher Special Weapon Remote Datajack Special Melee Weapon Improved Datajack Build | -11 -10 -10 -10 -9 -8 -8 -8 -8 -7 -7 -7 -7 -6 -6 -6 -6 -6 ------- Run | Jun Mat Min Exi Min Mat Gar Mat Gar Fac Gar Fac Gar Fac Low Low Zio Dee Slots Evolved 8 | . . . . . 4 . . . 2 . . . 2 . . . . Power . | . . . . . . . . . . . . . . . . . . Propulsion 2 | . . . . . 1 . . . . . . . 1 . . . . Utility 5 | . . . . . 2 . . . 2 . . . 1 . . . . Weapon 1 | . . . . . 1 . . . . . . . . . . . . Parts Attached 177 | 4 15 2 3 . 27 14 11 9 12 13 5 16 33 1 2 6 4 Power 14 | . 1 1 . . 2 1 1 1 1 . . 1 4 . . 1 . Engine 10 | . 1 . . . 2 1 1 . . . . 1 3 . . 1 . Core 4 | . . 1 . . . . . 1 1 . . . 1 . . . . Reactor . | . . . . . . . . . . . . . . . . . . Propulsion 27 | 2 6 1 . . 4 1 2 . 5 1 . 1 3 . . 1 . Treads 19 | . 3 1 . . 3 1 1 . 4 1 . 1 3 . . 1 . Leg 3 | . 3 . . . . . . . . . . . . . . . . Wheel 5 | 2 . . . . 1 . 1 . 1 . . . . . . . . Hover . | . . . . . . . . . . . . . . . . . . Flight . | . . . . . . . . . . . . . . . . . . Utility 70 | 1 4 . 1 . 13 7 2 4 4 7 4 5 13 1 2 2 . Device 32 | . 2 . . . 9 5 1 2 2 . 2 2 3 . 2 2 . Storage 3 | 1 1 . 1 . . . . . . . . . . . . . . Processor 4 | . 1 . . . . . . . . . . . 2 1 . . . Hackware 26 | . . . . . 1 1 1 2 2 7 1 3 8 . . . . Protection 5 | . . . . . 3 1 . . . . 1 . . . . . . Artifact . | . . . . . . . . . . . . . . . . . . Weapon 66 | 1 4 . 2 . 8 5 6 4 2 5 1 9 13 . . 2 4 Energy Gun 10 | . 1 . . . 1 2 1 . . 1 . . 2 . . 1 1 Energy Cannon 5 | . . . . . . . 1 1 . . . 1 1 . . . 1 Ballistic Gun 14 | 1 1 . . . . . . . 1 . . 5 6 . . . . Ballistic Cannon 19 | . 2 . 1 . 6 2 2 1 . 1 . . 1 . . 1 2 Launcher 4 | . . . . . 1 1 . . . 2 . . . . . . . Special Weapon 8 | . . . . . . . . . . 1 1 3 3 . . . . Impact Weapon . | . . . . . . . . . . . . . . . . . . Slashing Weapon . | . . . . . . . . . . . . . . . . . . Piercing Weapon . | . . . . . . . . . . . . . . . . . . Special Melee Weapon 6 | . . . 1 . . . 2 2 1 . . . . . . . . Unidentified Prototypes 3 | . . . . . 1 . . . . . . . 2 . . . . Corrupted Parts 1 | . . . . . . . . . . . . . 1 . . . . System Corruption 2 | . . . . . . . . . . . . . 2 . . . . Parts Lost 33 | . 3 . . . 1 1 2 2 2 3 . 2 8 . . 8 1 Power 5 | . . . . . 1 . . 1 . . . . 2 . . 1 . Propulsion 6 | . 1 . . . . 1 1 . . . . . 1 . . 2 . Utility 11 | . 1 . . . . . . . 1 3 . 2 1 . . 3 . Weapon 11 | . 1 . . . . . 1 1 1 . . . 4 . . 2 1 Highest Loss Streak 6 | . 2 . . . 1 1 1 2 1 2 . 1 2 . . 6 1 To Critical Strikes . | . . . . . . . . . . . . . . . . . . Average Slot Usage (%) 89 | . 98 100 100 100 95 88 87 80 90 93 90 86 84 86 86 79 14 Engine 4 | . 13 6 . . 6 9 9 5 . . . 3 2 . . . . Core 4 | . . 7 14 14 1 . . 2 7 7 7 3 3 6 6 5 . Treads 15 | . 14 28 28 28 19 7 6 . 8 23 23 16 12 13 13 12 . Wheel 2 | . 3 . . . 3 9 9 9 5 . . . . . . . . Device 6 | . 5 . . . 7 6 5 8 13 2 1 4 5 20 26 29 . Storage 8 | . 14 14 14 14 9 9 9 9 7 7 7 7 6 6 6 5 . Processor 3 | . 7 14 14 14 3 . . . . . . . 2 1 6 6 6 Hackware 16 | . . . . . 8 14 21 18 22 29 23 23 30 18 6 . . Protection 1 | . . . . . 6 5 . . . . 4 2 . . . . . Energy Gun 3 | . 10 . . . . 2 8 9 7 1 . . 3 6 6 2 6 Energy Cannon 1 | . . . . . . . 1 9 3 . . 3 1 . . . . Ballistic Gun 5 | . 7 . . . . . . . 3 7 7 11 7 13 13 11 . Ballistic Cannon 10 | . 10 28 19 28 26 23 16 7 . 6 7 . 1 . . 3 . Special Weapon 1 | . . . . . . . . . . 5 6 5 3 . . . . Naked Turns . | . . . . . . . . . . . . . . . . . . Heaviest Build 59 | 7 21 21 31 31 59 59 48 45 41 42 49 51 55 46 48 51 2 Greatest Support 150 | 32 40 40 40 40 60 28 28 28 60 60 60 95 150 150 150 150 3 Greatest Overweight (x) 2 | . 1 . . . 2 2 1 1 1 . . . . . . 1 . Average Overweight (x) . | . . . . . . 1 1 1 . . . . . . . . . Largest Inventory Capacity 15 | 8 10 10 15 15 15 15 15 15 15 15 15 15 15 15 15 15 5 Average Capacity 14 | 7 9 10 10 15 15 15 15 15 15 15 15 15 15 15 15 14 5 Most Carried 15 | 4 10 10 10 13 15 15 15 15 15 15 15 15 15 15 15 15 4 Average Carried 13 | 2 8 9 9 11 12 14 14 14 14 14 14 14 13 13 14 13 3 Final Capacity 15 | 8 10 10 15 15 15 15 15 15 15 15 15 15 15 15 15 5 5 Final Carried 15 | 4 10 10 10 12 15 15 15 14 15 15 14 15 13 15 14 5 3 Class Distribution -------------------- 24% | Bothacker-Mutant 21% | Mutant 9% | Bothacker-Skirmisher 8% | Hacker-Mutant 8% | Hacker-Skirmisher 6% | Skirmisher 6% | Commander-Gunner 4% | Scavenger-Mutant 4% | Scavenger-Skirmisher 4% | Commander-Skirmisher Dominant Class ---------------- Mutant | -10/Materials Mutant | -10/Mines Mutant | -10/Exiles Mutant | -9/Mines Skirmisher | -8/Materials Bothacker-Skirmisher | -8/Garrison Bothacker-Skirmisher | -8/Materials Hacker-Skirmisher | -8/Garrison Bothacker-Mutant | -7/Factory Bothacker-Mutant | -7/Garrison Bothacker-Mutant | -7/Factory Bothacker-Mutant | -7/Garrison Hacker-Mutant | -6/Factory Commander-Gunner | -6/Lower Caves Commander-Gunner | -6/Lower Caves Commander-Gunner | -6/Zion Mutant | -6/Deep Caves Resources | -11 -10 -10 -10 -9 -8 -8 -8 -8 -7 -7 -7 -7 -6 -6 -6 -6 -6 ----------- Run | Jun Mat Min Exi Min Mat Gar Mat Gar Fac Gar Fac Gar Fac Low Low Zio Dee Matter Collected 7549 | 188 730 70 30 70 969 863 731 122 213 452 154 1082 1334 119 93 329 . Remotely . | . . . . . . . . . . . . . . . . . . Salvage Created 7799 | . 942 99 . 34 710 615 1029 223 212 296 23 1408 2008 . . 200 . Parts 427 | . 62 8 . 5 60 31 60 11 11 16 2 46 98 . . 17 . Haulers Intercepted 3 | . 2 . . . 1 . . . . . . . . . . . . Recyclers Shooed 3 | . . . . . . . 1 . . . . . 2 . . . . Parts Field Recycled . | . . . . . . . . . . . . . . . . . . Retrieved Matter . | . . . . . . . . . . . . . . . . . . Parts Self-Destructed 6 | . . . . . . . . . . . . . . . 6 . . Prevented 1 | . . . . . . . . . . . . . . 1 . . . Kills | -11 -10 -10 -10 -9 -8 -8 -8 -8 -7 -7 -7 -7 -6 -6 -6 -6 -6 ------- Run | Jun Mat Min Exi Min Mat Gar Mat Gar Fac Gar Fac Gar Fac Low Low Zio Dee Combat Hostiles Destroyed 141 | . 16 3 . 4 17 18 18 5 5 9 1 18 26 . . 1 . Guns 66 | . 10 . . . . . 5 . 4 3 . 18 25 . . 1 . Cannons 63 | . 6 3 . 4 15 12 12 5 1 4 1 . . . . . . AOE 12 | . . . . . 2 6 1 . . 2 . . 1 . . . . Classes Destroyed 16 | . 7 1 . . 3 1 . 1 . 2 . . . . . 1 . Worker 9 | . 1 . . . 3 . 2 . . . . . 3 . . . . Builder 9 | . 1 . . . 1 . 2 . . . . . 5 . . . . Hauler 3 | . 2 . . . 1 . . . . . . . . . . . . Recycler 7 | . 1 1 . . 1 . 3 . . . . . 1 . . . . Mechanic 1 | . . . . . 1 . . . . . . . . . . . . Operator 7 | . 4 . . . 1 . . . 2 . . . . . . . . Watcher 10 | . 3 . . . 2 . 4 . . . . 1 . . . . . Swarmer 28 | . . 3 . 4 3 1 . 1 3 2 1 10 . . . . . Cutter 1 | . . . . . . 1 . . . . . . . . . . . Grunt 80 | . 16 . . . 8 11 12 2 2 4 . 7 18 . . . . Brawler 1 | . . . . . . . . . . 1 . . . . . . . Duelist 1 | . . . . . . . . 1 . . . . . . . . . Sentry 16 | . . . . . 4 3 5 . . . . 1 3 . . . . Hunter 10 | . . . . . 2 2 1 1 . . . . 4 . . . . Programmer 5 | . . . . . . . . . . 3 . . 2 . . . . Zionite 13 | . . . . . . . . . . . . . . . . 13 . Z-Technician 3 | . . . . . . . . . . . . . . . . . 3 Best Kill Streak 13 | . 4 4 . 4 7 5 13 4 3 3 1 5 9 . . 11 3 Combat Bots Only 7 | . 4 3 . 4 5 5 3 4 3 3 1 4 7 . . 1 . Max Kills in Single Turn 7 | . 2 2 . 2 4 3 7 1 1 2 1 3 3 . . 2 3 Gunslinging . | . . . . . . . . . . . . . . . . . . Exploded 3 | . . . . . 2 3 1 . . 2 . . 1 . . . . Melee . | . . . . . . . . . . . . . . . . . . Uniques/NPCs Destroyed 1 | . . . . . . . . . . . . . . . . 1 . Imprinter (-6/Zion) Combat | -11 -10 -10 -10 -9 -8 -8 -8 -8 -7 -7 -7 -7 -6 -6 -6 -6 -6 -------- Run | Jun Mat Min Exi Min Mat Gar Mat Gar Fac Gar Fac Gar Fac Low Low Zio Dee Damage Taken 11566 | . 649 37 . 26 742 763 966 262 895 955 164 889 2860 20 . 1918 420 Core 1855 | . 186 9 . 8 45 92 177 47 187 80 13 69 226 20 . 439 257 Absorbed by Shields 27 | . . . . . . . . . 27 . . . . . . . . Reduced by Siege Mode 89 | . . . . . . . . . . . . . 89 . . . . Redirected to Shielding 85 | . . . . . 85 . . . . . . . . . . . . Regen/Repaired (Parts) 1673 | . 51 . . . . . . . 257 148 35 133 619 361 . 69 . Core Remaining (%) 50 | 100 . . . 18 . . . 34 . . . 50 . . . . . Volleys Fired 635 | 5 89 5 . 5 59 56 53 23 25 46 11 114 109 2 . 31 2 Largest 3 | 1 2 2 . 2 3 3 3 3 2 3 1 3 3 3 . 3 2 Hottest 240 | 20 75 70 . 70 144 161 176 176 128 141 48 158 205 130 . 125 240 Shots Fired 1320 | 5 159 10 . 10 140 110 141 43 50 82 11 220 234 8 . 93 4 Gun 727 | 5 129 . . . . 21 40 12 42 33 . 194 176 8 . 65 2 Cannon 516 | . 30 10 . 10 136 81 101 31 8 27 6 18 28 . . 28 2 Launcher 19 | . . . . . 4 8 . . . 7 . . . . . . . Special 58 | . . . . . . . . . . 15 5 8 30 . . . . Kinetic 1005 | 5 116 10 . 10 136 81 96 10 17 55 6 197 170 6 . 90 . Thermal 204 | . 43 . . . . 21 40 12 25 5 . 15 34 2 . 3 4 Explosive 19 | . . . . . 4 8 . . . 7 . . . . . . . Electromagnetic 34 | . . . . . . . 5 21 8 . . . . . . . . Robot Hit Streak 26 | 1 19 7 . 8 14 13 7 9 7 6 3 26 15 3 . 12 . Robot Miss Streak 8 | 3 5 1 . 2 5 6 6 3 8 4 2 8 3 2 . 4 . Penetration Max 2 | . . . . . 1 . 1 . . . . 1 2 . . 1 . Secondary Targets 6 | . 2 . . . . . . . . . . 1 3 . . . . Max Gunslinging Chain 1 | . 1 . . . . . . . . . . 1 1 . . . . Shots Hit Robots 755 | 1 103 7 6 6 65 55 68 22 33 38 4 137 154 4 . 52 . Core Hits 357 | . 44 5 . 5 44 32 39 7 12 16 1 60 73 1 . 18 . Critical Kills 4 | . 1 . . . . . . . . . . 2 1 . . . . Critical Parts Destroyed 8 | . 1 . . . . . . . . . . 2 4 1 . . . Critical Strikes 42 | . 3 . . . 6 7 5 2 3 2 . 5 7 1 . 1 . Burn 8 | . . . . . . 2 2 1 3 . . . . . . . . Destroy 12 | . 2 . . . . . . . . . . 4 5 1 . . . Blast 22 | . 1 . . . 6 5 3 1 . 2 . 1 2 . . 1 . Melee Attacks 20 | . . . 6 . . . 4 2 7 1 . . . . . . . Impact . | . . . . . . . . . . . . . . . . . . Slashing . | . . . . . . . . . . . . . . . . . . Piercing . | . . . . . . . . . . . . . . . . . . Sneak Attacks 11 | . . . 6 . . . . . 5 . . . . . . . . Combat Hostiles . | . . . . . . . . . . . . . . . . . . Follow-up Attacks . | . . . . . . . . . . . . . . . . . . Damage Inflicted 20466 | 14 1555 155 . 136 1996 1905 2402 384 536 1022 29 3509 3959 142 . 1392 1330 Guns 10121 | 14 1121 . . . . 267 326 121 392 293 . 3277 3242 142 . 926 . Cannons 6761 | . 311 151 . 124 1548 1202 1429 263 115 443 29 232 451 . . 463 . Explosions 3536 | . 123 . . . 421 436 647 . 29 286 . . 264 . . . 1330 Melee . | . . . . . . . . . . . . . . . . . . Ramming 48 | . . 4 . 12 27 . . . . . . . 2 . . 3 . Kinetic 14436 | 14 1098 151 . 124 1548 1202 1373 104 132 663 29 3333 3182 94 . 1389 . Thermal 4122 | . 334 . . . . 267 973 121 289 73 . 176 511 48 . . 1330 Explosive 1530 | . 123 . . . 421 436 . . . 286 . . 264 . . . . Electromagnetic 330 | . . . . . . . 56 159 115 . . . . . . . . Impact . | . . . . . . . . . . . . . . . . . . Slashing . | . . . . . . . . . . . . . . . . . . Piercing . | . . . . . . . . . . . . . . . . . . Highest Corruption 7 | . . . . . 1 1 1 1 . 6 6 . 4 4 4 7 7 Average Corruption 2 | . . . . . 1 1 1 1 . 6 4 . 1 4 4 3 7 Corruption Purged 6 | . . . . . . . . . . . 6 . . . . . . Corruption Blocked . | . . . . . . . . . . . . . . . . . . Effects 136 | . . . . . 9 15 7 4 . 33 11 . 19 13 13 9 3 Message Errors 37 | . . . . . 5 2 1 . . 8 4 . 6 5 3 1 2 Matter Fused 25 | . . . . . 1 1 2 2 . 5 1 . 4 3 5 . 1 Heat Flow Errors 21 | . . . . . . 4 3 . . 6 1 . 3 . 1 3 . Energy Discharges 18 | . . . . . . 4 . 1 . 4 1 . 3 1 3 1 . Parts Fused 3 | . . . . . . . . . . 1 . . . . 1 1 . Data Loss (minor) 10 | . . . . . . 2 . . . 3 3 . . 1 . 1 . Data Loss (major) 5 | . . . . . 1 . . . . 3 . . 1 . . . . Misfires 7 | . . . . . . 1 1 . . 1 . . 1 2 . 1 . Alerts 6 | . . . . . 1 . . 1 . 1 1 . 1 1 . . . Weapon Failures 4 | . . . . . 1 1 . . . 1 . . . . . 1 . Overload Shots 1 | . . . . . . . . . . . . . . . . . 1 Overflow Damage 846 | . 59 2 . 3 21 13 201 . . 22 . . . . . . 525 Projectiles 143 | . 15 2 . 3 16 13 84 . . 10 . . . . . . . Explosions 698 | . 44 . . . . . 117 . . 12 . . . . . . 525 Melee 5 | . . . . . 5 . . . . . . . . . . . . Knockbacks 57 | . . . . 3 12 17 14 1 . 3 . . 4 . . 3 . Impact 1 | . . . . 1 . . . . . . . . . . . . . Kinetic 53 | . . . . 1 12 16 13 1 . 3 . . 4 . . 3 . Secondary 3 | . . . . 1 . 1 1 . . . . . . . . . . Self-Inflicted Damage 571 | . 16 . . . 13 . . . 40 81 . . . . . 1 420 Shots 6 | . 1 . . . . . . . 1 3 . . . . . . 1 Rammed 5 | . . 1 . 1 1 . . . . . . . 1 . . 1 . Targets Rammed 5 | . . 1 . 1 1 . . . . . . . 1 . . 1 . Kicked . | . . . . . . . . . . . . . . . . . . Crushed . | . . . . . . . . . . . . . . . . . . Highest Temperature 598 | . 87 36 . 45 204 598 478 117 9 260 178 103 369 . 99 158 27 Average Temperature 93 | . 23 16 . 19 50 131 145 50 7 97 39 42 98 . 64 79 18 Received Heat Transfer 3083 | . 396 . . . 243 414 450 18 132 252 . 243 825 9 . 101 . Effects 15 | . . . . . 2 5 5 . . . . . 3 . . . . Shutdowns 2 | . . . . . . 1 . . . . . . 1 . . . . Energy Bleed 2 | . . . . . . 1 1 . . . . . . . . . . Interference 7 | . . . . . 2 . 3 . . . . . 2 . . . . Short Circuit 1 | . . . . . . . 1 . . . . . . . . . . Damage (major) 2 | . . . . . . 2 . . . . . . . . . . . Damage (core) 1 | . . . . . . 1 . . . . . . . . . . . Siege Activations 1 | . . . . . . . . . . . . . 1 . . . . Total Turns 20 | . . . . . . . . . . . . . 20 . . . . Longest Duration 20 | . . . . . . . . . . . . . 20 . . . . Robots Corrupted . | . . . . . . . . . . . . . . . . . . Combat Hostiles . | . . . . . . . . . . . . . . . . . . Parts Fried . | . . . . . . . . . . . . . . . . . . Impact Corruptions 1 | . . . . . 1 . . . . . . . . . . . . Robots Melted 1 | . . . . . . 1 . . . . . . . . . . . Combat Hostiles . | . . . . . . . . . . . . . . . . . . Parts Melted 8 | . . . . . . 2 1 1 3 1 . . . . . . . Heat Transferred 5323 | . 725 . . . . 777 1375 333 864 148 . 250 777 74 . . . Parts Sabotaged . | . . . . . . . . . . . . . . . . . . Parts Stolen . | . . . . . . . . . . . . . . . . . . Parts Stripped . | . . . . . . . . . . . . . . . . . . Power Chain Reactions 1 | . . . . . . . . . 1 . . . . . . . . Missiles Intercepted . | . . . . . . . . . . . . . . . . . . Alert | -11 -10 -10 -10 -9 -8 -8 -8 -8 -7 -7 -7 -7 -6 -6 -6 -6 -6 ------- Run | Jun Mat Min Exi Min Mat Gar Mat Gar Fac Gar Fac Gar Fac Low Low Zio Dee Peak Influence 1110 | . 293 126 . 166 373 1110 763 787 593 718 386 992 521 . . . . Initial 531 | . . 51 . . . 189 531 342 413 278 376 157 520 . . . . Average 343 | . 162 36 . 104 103 716 497 544 469 566 299 514 255 . . . . Maximum Alert Level 4 | . 1 . . . 1 4 3 3 2 3 1 3 2 . . . . Low Security (%) 39 | 100 79 100 . 100 82 9 . . . . 26 16 42 . . . . Level 1 21 | . 20 . . . 17 7 24 35 39 7 73 16 28 . . . . Level 2 28 | . . . . . . 25 67 26 60 87 . 41 28 . . . . Level 3 9 | . . . . . . 54 7 37 . 4 . 25 . . . . . Level 4 . | . . . . . . 3 . . . . . . . . . . . Level 5 . | . . . . . . . . . . . . . . . . . . High Security . | . . . . . . . . . . . . . . . . . . Max Security . | . . . . . . . . . . . . . . . . . . Squads Dispatched 32 | . 5 1 . . 6 . 4 . 2 . 2 . 12 . . . . Investigation 9 | . 1 1 . . 4 . . . . . . . 3 . . . . Extermination 4 | . . . . . . . . . . . 1 . 3 . . . . Reinforcement 12 | . 4 . . . 2 . 2 . 2 . . . 2 . . . . Assault . | . . . . . . . . . . . . . . . . . . Garrison 7 | . . . . . . . 2 . . . 1 . 4 . . . . Intercept . | . . . . . . . . . . . . . . . . . . Searches Triggered . | . . . . . . . . . . . . . . . . . . Construction Impeded 3 | . . . . . 1 . 1 . . . . . 1 . . . . Haulers Reinforced . | . . . . . . . . . . . . . . . . . . Active Scanning Responses . | . . . . . . . . . . . . . . . . . . Cargo Convoy Interrupts . | . . . . . . . . . . . . . . . . . . Alert ID Control Effect 11 | . . . . . . . . . . 3 . 2 6 . . . . Stealth | -11 -10 -10 -10 -9 -8 -8 -8 -8 -7 -7 -7 -7 -6 -6 -6 -6 -6 --------- Run | Jun Mat Min Exi Min Mat Gar Mat Gar Fac Gar Fac Gar Fac Low Low Zio Dee Distress Signals 13 | . 2 . . . 4 . 5 . . . . 1 1 . . . . Communications Jammed . | . . . . . . . . . . . . . . . . . . Distress Signals . | . . . . . . . . . . . . . . . . . . Times Spotted 309 | . 33 3 . 7 28 29 28 14 15 24 5 20 50 3 . 50 . Peak Tracking Total 18 | . 4 3 . 4 5 4 4 7 5 5 3 4 6 3 . 18 . Tactical Retreats 18 | . . . . . 4 5 . 1 1 1 . 3 2 1 . . . Traps | -11 -10 -10 -10 -9 -8 -8 -8 -8 -7 -7 -7 -7 -6 -6 -6 -6 -6 ------- Run | Jun Mat Min Exi Min Mat Gar Mat Gar Fac Gar Fac Gar Fac Low Low Zio Dee Traps Triggered 10 | . . . . . . 7 . 1 1 . . . 1 . . . . Indirectly . | . . . . . . . . . . . . . . . . . . Trap Hack Attempts . | . . . . . . . . . . . . . . . . . . Triggered . | . . . . . . . . . . . . . . . . . . Disarmed . | . . . . . . . . . . . . . . . . . . Reprogrammed . | . . . . . . . . . . . . . . . . . . Reused 3 | . . . . . 2 . . . . . . . 1 . . . . Traps Reconfigurated 23 | . . . . . 12 5 . . . . . . 6 . . . . Traps Extracted . | . . . . . . . . . . . . . . . . . . Installed 4 | . . 4 . . . . . . . . . . . . . . . Triggered 4 | . . . . . 2 . . . . . . . 1 . 1 . . Most Traps Carried 1 | . . 1 . . . . . . . . . . . . . . . Machines | -11 -10 -10 -10 -9 -8 -8 -8 -8 -7 -7 -7 -7 -6 -6 -6 -6 -6 ---------- Run | Jun Mat Min Exi Min Mat Gar Mat Gar Fac Gar Fac Gar Fac Low Low Zio Dee Machines Disabled 39 | . 4 . . . 1 4 6 3 3 5 1 4 6 . . . 2 Max in Single Turn 3 | . 2 . . . 1 1 3 1 2 2 1 2 3 . . . 2 Garrison Access 1 | . . . . . . . . . . . . . 1 . . . . Garrison Relay 9 | . . . . . . 4 . 2 . 1 . 2 . . . . . Phase Generator 2 | . . . . . . . . . . 1 . 1 . . . . . Machines Repaired . | . . . . . . . . . . . . . . . . . . Machines Sabotaged . | . . . . . . . . . . . . . . . . . . Overloaded Fab Kills . | . . . . . . . . . . . . . . . . . . Hacking | -11 -10 -10 -10 -9 -8 -8 -8 -8 -7 -7 -7 -7 -6 -6 -6 -6 -6 --------- Run | Jun Mat Min Exi Min Mat Gar Mat Gar Fac Gar Fac Gar Fac Low Low Zio Dee Machines Accessed 61 | . 7 1 2 . 10 5 10 2 3 2 6 1 10 1 1 . . Terminals 39 | . 5 . . . 8 5 8 2 1 2 2 1 4 1 . . . Fabricators 3 | . . . . . . . . . . . 1 . 2 . . . . Repair Stations 3 | . 1 . . . . . . . . . 1 . 1 . . . . Recycling Units 3 | . 1 . . . 1 . . . . . 1 . . . . . . Scanalyzers 3 | . . . . . . . 1 . 1 . . . 1 . . . . Garrison Access 6 | . . . . . 1 . 1 . 1 . 1 . 2 . . . . Total Hacks 193 | . 16 1 24 . 35 10 35 3 9 5 13 3 37 1 1 . . Successful 137 | . 12 1 24 . 26 4 21 2 7 3 10 1 24 1 1 . . Failed 54 | . 4 . . . 8 6 13 1 2 2 3 2 13 . . . . Catastrophic 7 | . 2 . . . . 2 3 . . . . . . . . . . Database Lockouts 2 | . . . . . 1 . 1 . . . . . . . . . . Manual 92 | . 9 . 1 . 26 . 28 . . 2 7 2 10 . . 7 . Terminals 116 | . 10 . . . 31 10 31 3 2 5 5 3 15 1 . . . Fabricators 12 | . . . . . . . . . . . 1 . 11 . . . . Repair Stations 8 | . 2 . . . . . . . . . 2 . 4 . . . . Recycling Units 11 | . 4 . . . 3 . . . . . 4 . . . . . . Scanalyzers 12 | . . . . . . . 3 . 6 . . . 3 . . . . Garrison Access 8 | . . . . . 1 . 1 . 1 . 1 . 4 . . . . Terminal Hacks 67 | . 5 1 24 . 12 4 9 2 . 2 1 1 4 1 1 . . Record 24 | . . . 23 . . . . . . . . . . 1 . . . Robot Schematic 2 | . . . . . . . . . . . 1 . 1 . . . . Robot Analysis 6 | . 3 . . . 2 . 1 . . . . . . . . . . Prototype ID Bank 4 | . 1 . . . 1 . 1 . . . . . 1 . . . . Open Door 4 | . . 1 . . . 1 . 1 . . . . . . 1 . . Branch Access Points 1 | . . . . . . . . . . . . . 1 . . . . Emergency Access Points 4 | . . . . . 1 1 . . . 1 . 1 . . . . . Terminal Index 2 | . . . . . 1 . 1 . . . . . . . . . . Garrison Index 1 | . . . . . . . 1 . . . . . . . . . . Unreport Threat 5 | . . . . . 1 . 3 . . . . . 1 . . . . Locate Traps 2 | . 1 . . . 1 . . . . . . . . . . . . Security Status 1 | . . . . . 1 . . . . . . . . . . . . Recall Investigation 1 | . . . . . . . 1 . . . . . . . . . . Recall Reinforcements 1 | . . . . . 1 . . . . . . . . . . . . Hauler Manifests 2 | . . . . . 1 . 1 . . . . . . . . . . Registered Components 1 | . . . . . 1 . . . . . . . . . . . . Zone Layout 1 | . . . . . 1 . . . . . . . . . . . . Garrison Registry 2 | . . . . . . . . 1 . 1 . . . . . . . Patrol Navigation 1 | . . . . . . 1 . . . . . . . . . . . Security Stations 1 | . . . . . . 1 . . . . . . . . . . . EX-Prototype ID Bank 1 | . . . 1 . . . . . . . . . . . . . . Fabricator Hacks 10 | . . . . . . . . . . . 1 . 9 . . . . Network Status 2 | . . . . . . . . . . . 1 . 1 . . . . Load Schematic 4 | . . . . . . . . . . . . . 4 . . . . Build 4 | . . . . . . . . . . . . . 4 . . . . Repair Station Hacks 8 | . 2 . . . . . . . . . 2 . 4 . . . . Scan Component 4 | . 1 . . . . . . . . . 1 . 2 . . . . Repair 4 | . 1 . . . . . . . . . 1 . 2 . . . . Recycling Unit Hacks 6 | . 2 . . . 2 . . . . . 2 . . . . . . Report Inventory 3 | . 1 . . . 1 . . . . . 1 . . . . . . Retrieve Matter 1 | . . . . . 1 . . . . . . . . . . . . Retrieve Components 2 | . 1 . . . . . . . . . 1 . . . . . . Scanalyzer 10 | . . . . . . . 2 . 6 . . . 2 . . . . Insert Component 5 | . . . . . . . 1 . 3 . . . 1 . . . . Analyze 5 | . . . . . . . 1 . 3 . . . 1 . . . . Garrison Access Hacks 6 | . . . . . 1 . 1 . 1 . 1 . 2 . . . . Unlock Access 4 | . . . . . 1 . 1 . 1 . 1 . . . . . . Seal Access 1 | . . . . . . . . . . . . . 1 . . . . Coupler Status 1 | . . . . . . . . . . . . . 1 . . . . Unauthorized Hacks 30 | . 3 . . . 11 . 9 . . 1 3 . 3 . . . . Terminals 22 | . 1 . . . 10 . 9 . . 1 1 . . . . . . Track 1 | . . . . . 1 . . . . . . . . . . . . Assimilate 4 | . . . . . 1 . 3 . . . . . . . . . . Botnet 15 | . 1 . . . 6 . 6 . . 1 1 . . . . . . Operators 2 | . . . . . 2 . . . . . . . . . . . . Fabricators 1 | . . . . . . . . . . . . . 1 . . . . Prioritize 1 | . . . . . . . . . . . . . 1 . . . . Repair Stations . | . . . . . . . . . . . . . . . . . . Recycling Units 5 | . 2 . . . 1 . . . . . 2 . . . . . . Monitor 1 | . . . . . . . . . . . 1 . . . . . . Recyclers 3 | . 1 . . . 1 . . . . . 1 . . . . . . Tunnel 1 | . 1 . . . . . . . . . . . . . . . . Scanalyzers . | . . . . . . . . . . . . . . . . . . Garrison Access 2 | . . . . . . . . . . . . . 2 . . . . Reprogram 1 | . . . . . . . . . . . . . 1 . . . . Watchers 1 | . . . . . . . . . . . . . 1 . . . . Data Cores Recovered 1 | . . . . . 1 . . . . . . . . . . . . Used 1 | . . . . . 1 . . . . . . . . . . . . Hacking Detections 47 | . 7 . . . 9 4 9 1 3 2 4 1 7 . . . . Full Trace Events 8 | . . . . . 5 2 . . . . . . 1 . . . . Feedback Events 1 | . . . . . 1 . . . . . . . . . . . . Corruption 1 | . . . . . 1 . . . . . . . . . . . . Feedback Blocked . | . . . . . . . . . . . . . . . . . . Robot Schematics Acquired 5 | . . . . . . . . . . . 1 . 1 . . 3 . Robots Built 12 | . . . . . . . . . . . . . 12 . . . . Authchips 4 | . . . . . . . . . . . . . 4 . . . . Time 190 | . . . . . . . . . . . . . 190 . . . . Total Robot Build Rating 60 | . . . . . . . . . . . . . 60 . . . . Part Schematics Acquired 18 | . . . . . . . 1 . 3 . . . . . . 14 . Parts Built . | . . . . . . . . . . . . . . . . . . Authchips . | . . . . . . . . . . . . . . . . . . Time . | . . . . . . . . . . . . . . . . . . Total Part Build Rating . | . . . . . . . . . . . . . . . . . . Parts Repaired 4 | . 1 . . . . . . . . . 1 . 2 . . . . Time 194 | . 26 . . . . . . . . . 44 . 124 . . . . Parts Recycled . | . . . . . . . . . . . . . . . . . . Recycled Matter . | . . . . . . . . . . . . . . . . . . Retrieved Matter 31 | . . . . . 31 . . . . . . . . . . . . Retrieved Components 6 | . 2 . . . . . . . . . 4 . . . . . . Parts Scanalyzed 5 | . . . . . . . 1 . 3 . . . 1 . . . . Part Schematics Acquired 4 | . . . . . . . 1 . 3 . . . . . . . . Parts Damaged . | . . . . . . . . . . . . . . . . . . Bothacking | -11 -10 -10 -10 -9 -8 -8 -8 -8 -7 -7 -7 -7 -6 -6 -6 -6 -6 ------------ Run | Jun Mat Min Exi Min Mat Gar Mat Gar Fac Gar Fac Gar Fac Low Low Zio Dee Used RIF Installer 4 | . . . . . . 1 . 1 . 1 . 1 . . . . . Hotswap 1 | . . . . . . . . . . . . 1 . . . . . Watcher Feeds 1 | . . . . . . . . 1 . . . . . . . . . Alert ID Control 1 | . . . . . . . . . . 1 . . . . . . . Robots Hacked 43 | . . . 6 . . . 3 2 5 9 3 3 12 . . . . Non-combat 15 | . . . 3 . . . . . 3 . 1 . 8 . . . . Combat 28 | . . . 3 . . . 3 2 2 9 2 3 4 . . . . Robot Hacks Applied 53 | . . . 6 . . . 3 2 7 9 3 4 19 . . . . parse_system 10 | . . . 6 . . . . . . 1 . . 3 . . . . no_distress 2 | . . . . . . . . . 1 . . . 1 . . . . generate_echo 1 | . . . . . . . . . 1 . . . . . . . . find_chute 3 | . . . . . . . . . 1 . . . 2 . . . . ignore_repairs 1 | . . . . . . . . . . . . . 1 . . . . drop_inventory 2 | . . . . . . . . . 1 . . . 1 . . . . find_recycling 1 | . . . . . . . . . . . . . 1 . . . . ignore_parts 1 | . . . . . . . . . . . . . 1 . . . . find_station 1 | . . . . . . . . . . . . . 1 . . . . purge_threat 1 | . . . . . . . . . . . . . 1 . . . . map_route 1 | . . . . . . . . . . . . . 1 . . . . find_shortcuts 1 | . . . . . . . . . . . . 1 . . . . . link_fov 1 | . . . . . . . . . . . . . 1 . . . . disable_weapons 1 | . . . . . . . 1 . . . . . . . . . . formatsys_low 2 | . . . . . . . . . 1 . . . 1 . . . . formatsys_high 24 | . . . . . . . 2 2 2 8 3 3 4 . . . . Relay Couplers Released 35 | . . . . . . 13 . 10 . 3 . 9 . . . . . Machine Destruction 35 | . . . . . . 13 . 10 . 3 . 9 . . . . . Attached 16 | . . . . . . . 1 2 2 5 1 3 2 . . . . Fabnet Peak Effective % . | . . . . . . . . . . . . . . . . . . Robots Rewired 3 | . . . . . . 3 . . . . . . . . . . . Allies Hacked 1 | . . . . . . . . . . 1 . . . . . . . Hacks Repelled . | . . . . . . . . . . . . . . . . . . Allies | -11 -10 -10 -10 -9 -8 -8 -8 -8 -7 -7 -7 -7 -6 -6 -6 -6 -6 -------- Run | Jun Mat Min Exi Min Mat Gar Mat Gar Fac Gar Fac Gar Fac Low Low Zio Dee Total Allies 48 | . . 3 . 1 . 4 3 3 3 8 3 3 17 . . . . Largest Group 14 | . . 3 3 3 1 3 1 3 3 5 4 4 14 14 14 14 . Highest-Rated Group 397 | . . 40 40 40 8 72 29 61 61 127 97 73 397 397 395 395 . Highest-Rated Ally 41 | . . 16 16 31 8 24 29 31 31 32 32 26 41 29 29 29 . Total Orders 35 | . . . . . . . . . 1 4 3 10 8 1 . 8 . STAY 17 | . . . . . . . . . . 2 2 5 4 . . 4 . FOLLOW 11 | . . . . . . . . . . 1 1 4 3 . . 2 . AID 7 | . . . . . . . . . 1 1 . 1 1 1 . 2 . Ally Attacks 380 | . . . . 17 . 26 14 11 22 37 7 24 37 44 9 132 . Total Damage 6387 | . . . . 86 . 643 164 273 333 561 98 273 1330 705 136 1785 . Kills 67 | . . . . 3 . 3 1 6 2 5 1 3 6 4 3 30 . Allies Corrupted . | . . . . . . . . . . . . . . . . . . Allies Melted . | . . . . . . . . . . . . . . . . . . Intel | -11 -10 -10 -10 -9 -8 -8 -8 -8 -7 -7 -7 -7 -6 -6 -6 -6 -6 ------- Run | Jun Mat Min Exi Min Mat Gar Mat Gar Fac Gar Fac Gar Fac Low Low Zio Dee Robot Analysis Total 6 | . 3 . . . 2 . 1 . . . . . . . . . . Derelict Logs Recovered 3 | . . 1 . 1 . . . . . . . . . . 1 . . Drone Launches . | . . . . . . . . . . . . . . . . . . Drone Recoveries . | . . . . . . . . . . . . . . . . . . Exploration | -11 -10 -10 -10 -9 -8 -8 -8 -8 -7 -7 -7 -7 -6 -6 -6 -6 -6 ------------- Run | Jun Mat Min Exi Min Mat Gar Mat Gar Fac Gar Fac Gar Fac Low Low Zio Dee Turns Passed 18162 | 58 1262 1078 617 620 1626 1382 1050 515 663 1255 745 1889 3531 583 656 536 96 Spaces Moved 9320 | 43 629 650 375 366 722 799 538 270 388 600 270 882 1624 291 398 305 170 Core 239 | 15 . . . . . . . . . . . . . . . 54 170 Treads 6500 | . 379 650 375 366 362 . . . 52 600 270 882 1624 291 398 251 . Legs 190 | . 190 . . . . . . . . . . . . . . . . Wheels 2391 | 28 60 . . . 360 799 538 270 336 . . . . . . . . Hover . | . . . . . . . . . . . . . . . . . . Flight . | . . . . . . . . . . . . . . . . . . Fastest Speed 50 | 50 100 160 160 160 115 115 115 115 115 170 170 165 160 160 160 50 50 Average Speed 148 | 82 143 160 160 160 141 121 115 115 122 170 170 165 164 160 160 140 50 Slowest Speed 260 | 100 190 160 160 160 160 130 115 115 170 170 170 170 170 160 160 260 50 Overloaded Moves . | . . . . . . . . . . . . . . . . . . Propulsion Burnouts . | . . . . . . . . . . . . . . . . . . Robots Hopped . | . . . . . . . . . . . . . . . . . . Cave-ins Triggered . | . . . . . . . . . . . . . . . . . . Exploration Rate (%) 54 | 3 98 97 81 63 40 85 56 39 14 46 10 80 44 54 71 61 36 Regions Visited 17 Branch Regions 7 Pre-discovered Areas 4 | . 1 2 1 . . . . . . . . . . . . . . Known Exits Taken 5 | . . . . . 1 . 1 . 1 . 1 . 1 . . . . Unknown Exits Taken 8 | 1 1 1 1 1 . . . . . . . . . 1 1 1 . Scrap Searched 5 | . . 1 . 1 . . . . . . . . . 1 2 . . Spaces Dug 62 | . . . . . 24 11 14 . . 10 3 . . . . . . Terrain Destroyed 451 | . 19 . . . 59 35 84 . 6 108 3 83 52 . . 2 . Melee . | . . . . . . . . . . . . . . . . . . Projectile 148 | . . . . . 44 3 62 . 1 2 3 12 19 . . 2 . AOE 303 | . 19 . . . 15 32 22 . 5 106 . 71 33 . . . . Terrain Rammed . | . . . . . . . . . . . . . . . . . . Walls Destroyed . | . . . . . . . . . . . . . . . . . . Machines Disabled . | . . . . . . . . . . . . . . . . . . Actions | -11 -10 -10 -10 -9 -8 -8 -8 -8 -7 -7 -7 -7 -6 -6 -6 -6 -6 --------- Run | Jun Mat Min Exi Min Mat Gar Mat Gar Fac Gar Fac Gar Fac Low Low Zio Dee Total 12601 | 60 834 680 389 390 1211 1117 859 440 527 773 550 1103 2307 405 419 356 181 Wait 2057 | 1 57 7 . 15 360 172 236 121 74 79 250 61 499 106 13 3 3 Move 9299 | 42 628 649 374 365 721 797 537 268 387 598 269 880 1623 290 397 304 170 Hop . | . . . . . . . . . . . . . . . . . . Pick Up 197 | 8 29 6 3 3 25 13 10 8 13 17 9 15 29 4 3 2 . Fast Attach . | . . . . . . . . . . . . . . . . . . Attach 86 | 4 10 . . . 7 1 4 4 8 5 4 6 21 1 2 5 4 Detach 7 | . . . . . . . . . . . . . . . . 5 2 Swap 91 | . 5 2 3 . 20 13 7 5 4 8 1 10 12 . . 1 . Drop 130 | . 16 6 3 1 18 13 6 7 6 13 5 15 11 2 4 4 . Fire 635 | 5 89 5 . 5 59 56 53 23 25 46 11 114 109 2 . 31 2 Melee 20 | . . . 6 . . . 4 2 7 1 . . . . . . . Ram 2 | . . . . . 1 . . . . . . . . . . 1 . Kick . | . . . . . . . . . . . . . . . . . . Crush 3 | . . 1 . 1 . . . . . . . . 1 . . . . Escape Stasis 40 | . . . . . . 40 . . . . . . . . . . . Rewire 30 | . . . . . . 12 2 2 3 6 1 2 2 . . . . Trap 4 | . . 4 . . . . . . . . . . . . . . . Miscellaneous . | . . . . . . . . . . . . . . . . . . Route ------- -11/Junkyard -10/Materials (discovered 4 exits: [*Mat x3] / *Min) -10/Mines (discovered 3 exits: [*Mat x2] / *Exi) -10/Exiles (discovered 2 exits: [*Min x2]) -9/Mines (discovered 2 exits: *Mat x2) -8/Materials -8/Garrison (discovered 4 exits: *Mat x4) -8/Materials (discovered 2 exits: *Fac / Gar) -8/Garrison (discovered 3 exits: *Fac x3) -7/Factory -7/Garrison (discovered 3 exits: *Fac x3) -7/Factory -7/Garrison (discovered 3 exits: *Fac x3) -6/Factory (discovered 4 exits: *Fac x2 / *Low x2) -6/Lower Caves -6/Lower Caves -6/Zion (discovered 2 exits: [*Dee] / [*Pro]) -6/Deep Caves History --------- Turn | Location | Event 7 | -11/Junkyard | Discovered new exit (range 14) 59 | -11/Junkyard | Entered Materials 297 | -10/Materials | Core integrity fell below 50% 313 | -10/Materials | Build established: Mutant 488 | -10/Materials | Discovered new exit (range 14) 592 | -10/Materials | Discovered new exit (range 5) 628 | -10/Materials | Build established: Scavenger-Mutant 861 | -10/Materials | Discovered new exit (range 16) 939 | -10/Materials | Build established: Mutant 1031 | -10/Materials | Repaired Lgt. Treads 1080 | -10/Materials | Discovered new exit (range 12) 1321 | -10/Materials | Entered Mines 1369 | -10/Mines | Found a hidden stash of uninstalled traps 1409 | -10/Mines | Deemed a non-threat by the Exiles lab entrance 1409 | -10/Mines | Discovered new exit (range 5) 1529 | -10/Mines | Assisted by bots powering up and referring to "LRC-V3" 1749 | -10/Mines | Learned location of Storage (-9) 1812 | -10/Mines | Met a Derelict shopkeep closing up shop 2007 | -10/Mines | Discovered new exit (range 6) 2063 | -10/Mines | Discovered new exit (range 15) 2399 | -10/Mines | Entered Exiles 2399 | -10/Exiles | Accompanied by 3 allies 2423 | -10/Exiles | Discovered new exit (range 15) 2443 | -10/Exiles | Met 8R-AWN 2489 | -10/Exiles | Met EX-HEX 2578 | -10/Exiles | Met EX-DEC 2608 | -10/Exiles | Visited The Gauntlet 2717 | -10/Exiles | Learned location of Zion (-6) 2751 | -10/Exiles | Met EX-BIN 2773 | -10/Exiles | Aligned with FarCom system 2775 | -10/Exiles | Given EX-Vault access code 2815 | -10/Exiles | Opened EX-Vault 2825 | -10/Exiles | Found Trap Reconfigurator 2859 | -10/Exiles | Warned to stay clear of 0b10 Research branches 3001 | -10/Exiles | Discovered new exit (range 10) 3016 | -10/Exiles | Left Exiles lab with Trap Reconfigurator 3016 | -10/Exiles | Entered Mines 3016 | -9/Mines | Accompanied by 3 allies 3034 | -9/Mines | Core integrity fell below 20% 3047 | -9/Mines | Met a Derelict bent on vengeance 3121 | -9/Mines | Discovered new exit (range 10) 3291 | -9/Mines | Received a Mining Laser from a helpful Derelict 3296 | -9/Mines | Discovered new exit (range 4) 3410 | -9/Mines | Learned Materials trap positions 3636 | -9/Mines | Entered Materials 3636 | -8/Materials | Accompanied by 1 ally 3636 | -8/Materials | Evolved 4 slots: Propulsion x1, Utility x2, Weapon x1 3637 | -8/Materials | Loaded intel: 12 trap records 3932 | -8/Materials | Build established: Scavenger-Skirmisher 4280 | -8/Materials | Build established: Skirmisher 4523 | -8/Materials | Central database locked down 5261 | -8/Materials | Identified exit to Garrison 5262 | -8/Materials | Entered Garrison 5281 | -8/Garrison | Installed Relay Interface Framework 5390 | -8/Garrison | Triggered checkpoint 5498 | -8/Garrison | Triggered checkpoint 5580 | -8/Garrison | Garrison Relay disabled 5581 | -8/Garrison | Garrison Relay disabled 5590 | -8/Garrison | Garrison Relay disabled 5750 | -8/Garrison | Triggered checkpoint 5806 | -8/Garrison | Discovered new exit (range 10) 5980 | -8/Garrison | Build established: Bothacker-Skirmisher 6180 | -8/Garrison | Triggered checkpoint 6195 | -8/Garrison | Learned Materials security intel 6213 | -8/Garrison | Rescued a captive Derelict 6300 | -8/Garrison | Discovered new exit (range 13) 6360 | -8/Garrison | Triggered checkpoint 6364 | -8/Garrison | Discovered new exit (range 5) 6504 | -8/Garrison | Triggered checkpoint 6603 | -8/Garrison | Discovered new exit (range 8) 6644 | -8/Garrison | Entered Materials 7074 | -8/Materials | Central database locked down 7430 | -8/Materials | Discovered new exit (range 8) 7523 | -8/Materials | Garrison activated, responded to threat 7647 | -8/Materials | Core integrity fell below 50% 7693 | -8/Materials | Identified exit to Garrison 7694 | -8/Materials | Entered Garrison 7709 | -8/Garrison | Discovered new exit (range 67) 7709 | -8/Garrison | Discovered new exit (range 104) 7709 | -8/Garrison | Discovered new exit (range 72) 7834 | -8/Garrison | Triggered checkpoint 7879 | -8/Garrison | Garrison Relay disabled 7972 | -8/Garrison | Triggered checkpoint 7982 | -8/Garrison | Triggered checkpoint 8002 | -8/Garrison | Build established: Hacker-Skirmisher 8072 | -8/Garrison | Garrison Relay disabled 8133 | -8/Garrison | Expanded RIF knowledge: Watcher Feeds 8174 | -8/Garrison | Rescued a captive Derelict 8209 | -8/Garrison | Entered Factory 8209 | -7/Factory | Accompanied by 3 allies 8209 | -7/Factory | Evolved 2 slots: Utility x2 8387 | -7/Factory | Build established: Bothacker-Mutant 8864 | -7/Factory | Build established: Scavenger-Mutant 8870 | -7/Factory | Identified exit to Garrison 8872 | -7/Factory | Entered Garrison 8872 | -7/Garrison | Accompanied by 3 allies 8937 | -7/Garrison | Phase Generator disabled 9115 | -7/Garrison | Discovered new exit (range 30) 9115 | -7/Garrison | Discovered new exit (range 61) 9115 | -7/Garrison | Discovered new exit (range 54) 9295 | -7/Garrison | Expanded RIF knowledge: Alert ID Control 9340 | -7/Garrison | Garrison Relay disabled 9409 | -7/Garrison | Build established: Bothacker-Mutant 9496 | -7/Garrison | Triggered checkpoint 9588 | -7/Garrison | Triggered checkpoint 10127 | -7/Garrison | Entered Factory 10127 | -7/Factory | Accompanied by 3 allies 10385 | -7/Factory | Repaired Remote Datajack 10849 | -7/Factory | Garrison activated, responded to threat 10871 | -7/Factory | Identified exit to Garrison 10872 | -7/Factory | Entered Garrison 10872 | -7/Garrison | Accompanied by 4 allies 10990 | -7/Garrison | Triggered checkpoint 11005 | -7/Garrison | Triggered checkpoint 11052 | -7/Garrison | Triggered checkpoint 11143 | -7/Garrison | Garrison Relay disabled 11166 | -7/Garrison | Triggered checkpoint 11983 | -7/Garrison | Discovered new exit (range 10) 12261 | -7/Garrison | Discovered new exit (range 14) 12284 | -7/Garrison | Phase Generator disabled 12332 | -7/Garrison | Expanded RIF knowledge: Hotswap 12436 | -7/Garrison | Triggered checkpoint 12560 | -7/Garrison | Discovered new exit (range 9) 12586 | -7/Garrison | Triggered checkpoint 12601 | -7/Garrison | Garrison Relay disabled 12761 | -7/Garrison | Entered Factory 12761 | -6/Factory | Accompanied by 1 ally 12761 | -6/Factory | Evolved 2 slots: Propulsion x1, Utility x1 13116 | -6/Factory | Repaired Imp. Heavy Treads 13179 | -6/Factory | Repaired Imp. Heavy Treads 13565 | -6/Factory | Garrison activated, responded to threat 13755 | -6/Factory | Discovered new exit (range 5) 13768 | -6/Factory | Identified exit to Factory 13878 | -6/Factory | Build established: Hacker-Mutant 13933 | -6/Factory | Discovered exit to Factory (range 11) 14212 | -6/Factory | Garrison activated, responded to threat 14304 | -6/Factory | Destroyed 7 combat bots 14555 | -6/Factory | Build established: Hacker-Skirmisher 14672 | -6/Factory | Identified exit to Lower Caves 14950 | -6/Factory | Build established: Hacker-Mutant 15734 | -6/Factory | Build established: Hacker-Skirmisher 15983 | -6/Factory | Fabricated G-50 Soldier (x3) 16023 | -6/Factory | Fabricated G-50 Soldier (x3) 16063 | -6/Factory | Fabricated G-50 Soldier (x3) 16101 | -6/Factory | Fabricated G-50 Soldier (x3) 16282 | -6/Factory | Build established: Commander-Skirmisher 16292 | -6/Factory | Entered Lower Caves 16292 | -6/Lower Caves | Accompanied by 14 allies 16586 | -6/Lower Caves | Build established: Commander-Gunner 16844 | -6/Lower Caves | Discovered new exit (range 18) 16875 | -6/Lower Caves | Entered another Lower Caves area 16875 | -6/Lower Caves | Accompanied by 14 allies 17044 | -6/Lower Caves | Build established: Commander-Skirmisher 17051 | -6/Lower Caves | Learned Factory machine intel 17489 | -6/Lower Caves | Build established: Commander-Gunner 17502 | -6/Lower Caves | Discovered new exit (range 5) 17531 | -6/Lower Caves | Entered Zion 17531 | -6/Zion | Accompanied by 14 allies 17568 | -6/Zion | Discovered new exit (range 22) 17689 | -6/Zion | System corruption cleaned by Quarantine Array 17697 | -6/Zion | RIF detected upon attempting to enter Zion 17697 | -6/Zion | Attacked by Zionites 17697 | -6/Zion | Spotted N8-SM3(B) 17697 | -6/Zion | Spotted OE-9G9(B) 17705 | -6/Zion | Allies destroyed OE-9G9(B) 17707 | -6/Zion | Allies destroyed N8-SM3(B) 17775 | -6/Zion | Destroyed Imprinter 17790 | -6/Zion | Extracted access codes from Imprinter's data core 17951 | -6/Zion | 99-TNT came to Zion's defense 18038 | -6/Zion | Core integrity fell below 50% 18057 | -6/Zion | Opened final containment barrier to the Deep Caves 18064 | -6/Zion | Discovered new exit (range 5) 18065 | -6/Zion | Saw the warning signs outside the Deep Caves entrance 18067 | -6/Zion | Core integrity fell below 20% 18067 | -6/Zion | Entered Deep Caves 18070 | -6/Deep Caves | Lost 6 parts (1p2n2u1w) 18163 | -6/Deep Caves | Z-Facility disabled 18163 | -6/Deep Caves | Destroyed self via exploding Z-Power Last Messages --------------- 18067_ Identified Mak. Laser. 18092_ M>HWS,=CKA85HJMICZ1